[Event "FIDE Chesscom Online Nations Cup"]
[White "Dominguez Perez, Leinier"]
[Black "Aronian, Levon"]
[Site "Online"]
[Round "4"]
[Annotator "RC"]
[Result "0-1"]
[Date "2020.05.06"]
[WhiteElo "2786"]
[BlackElo "2778"]
[PlyCount "96"]
[TimeControl "1500+10"]

1. e4 {[%emt 0:0:1]} e5 {[%emt 0:0:2]} 2. Nf3 {[%emt 0:0:1]} Nf6 {[%emt 0:0:2]
} 3. Nxe5 {[%emt 0:0:27]} d6 {[%emt 0:0:2]} 4. Nf3 {[%emt 0:0:0]} Nxe4 {[%emt 0:0:3]} 5. d4 {[%emt 0:0:3]} d5 {[%emt 0:0:1]} 6. Bd3 {[%emt 0:0:4]} Bd6 {[%emt 0:0:2]} 7. 0-0 {[%emt 0:0:5]} 0-0 {[%emt 0:0:0]} 8. c4 {[%emt 0:0:4]} c6 {[%emt 0:0:1]} 9. Qc2 {[%emt 0:1:9]} h6 {[%emt 0:0:4]
} 10. Re1 {[%emt 0:3:9]} Be6 {[%emt 0:2:43]} 11. cxd5 {[%emt 0:2:3]
} cxd5 {[%emt 0:0:7]} 12. Bxe4 {[%emt 0:0:2]} dxe4 {[%emt 0:0:0]} 13. Qxe4 {[%emt 0:0:1]} Bd5 {[%emt 0:0:16]} 14. Qg4 {[%emt 0:1:43]} Qd7 {[%emt 0:0:10]} 15. Qxd7 {[%emt 0:0:54]} Nxd7 {[%emt 0:0:3]} 16. Nc3 {[%emt 0:0:1]
} Bxf3 {[%emt 0:0:8]} 17. gxf3 {[%emt 0:0:3]} Bb4 {[%emt 0:0:0]} 18. Bd2 {[%emt 0:3:7]} Rfd8 {[%emt 0:0:10]} 19. Ne4 {[%emt 0:2:19]} Bxd2 {[%emt 0:0:27]} 20. Nxd2 {[%emt 0:0:0]} Nf6 {[%emt 0:0:2]} 21. Nb3 {[%emt 0:0:53]
} b6 {[%emt 0:0:5]} 22. Rac1 {[%emt 0:0:43]} Nd5 {[%emt 0:0:0]} 23. a3 {[%emt 0:0:46]} Rd6 {[%emt 0:0:6]} 24. Re4 {[%emt 0:1:52]} Rad8 {[%emt 0:0:17]} 25. Kf1 {[%emt 0:1:23]} a5 {[%emt 0:0:26]} 26. a4 {[%emt 0:0:0]} g5 {[%emt 0:1:10]} 27. Rc4 {[%emt 0:2:5]} Kg7 {[%emt 0:0:17]} 28. Re1 {[%emt 0:0:38]} Kg6 {[%emt 0:0:28]} 29. Nd2 {[%emt 0:0:51]} Nb4 {[%emt 0:0:29]
} 30. Nb3 {[%emt 0:0:25]} Nd3 {[%emt 0:0:20]} 31. Re2 {[%emt 0:0:0]} Nf4 {[%emt 0:0:17]} 32. Re1 {[%emt 0:0:34]} Rf6 {[%emt 0:0:38]} 33. Nd2 {[%emt 0:1:1]} Nd3 {[%emt 0:0:20]} 34. Rb1 {[%emt 0:0:2]} Rf4 {[%emt 0:0:31]
} 35. Rc6+ {[%emt 0:0:10]} Kg7 {[%emt 0:0:2]} 36. Rxb6 {[%emt 0:0:35]
} Rdxd4 {[%emt 0:0:10]} 37. b3 {[%emt 0:1:10]} Nxf2 {[%emt 0:0:0]} 38. Ke2 {[%emt 0:0:6]} Rh4 {[%emt 0:0:39]} 39. Nf1 {[%emt 0:0:22]} Nd3 {[%emt 0:0:2]} 40. Rb5 {[%emt 0:0:10]} Nf4+ {[%emt 0:0:42]} 41. Kf2 {[%emt 0:0:12]
} Rd3 {[%emt 0:0:1]} 42. Re5 {[%emt 0:0:33]} Rc3 {[%emt 0:0:0]} 43. Rxa5 {[%emt 0:0:14]} Rh3 {[%emt 0:0:10]} 44. Rb5 {[%emt 0:0:3]} Rhxf3+ {[%emt 0:1:3]} 45. Kg1 {[%emt 0:0:2]} Rc2 {[%emt 0:0:10]} 46. Rb6 {[%emt 0:0:18]
} Rff2 {[%emt 0:1:9]} 47. a5 {[%emt 0:0:10]} Rg2+ {[%emt 0:0:0]} 48. Kh1 {[%emt 0:0:2]} Nh3 {[%emt 0:0:1]} 0-1

[Event "FIDE Chesscom Online Nations Cup"]
[White "Giri, Anish"]
[Black "So, Wesley"]
[Site "Online"]
[Round "4"]
[Annotator "RC"]
[Result "1/2-1/2"]
[Date "2020.05.06"]
[WhiteElo "2731"]
[BlackElo "2741"]
[PlyCount "175"]
[TimeControl "1500+10"]

1. d4 {[%emt 0:0:1]} Nf6 {[%emt 0:0:4]} 2. c4 {[%emt 0:0:2]} e6 {[%emt 0:0:0]} 3. Nf3 {[%emt 0:0:4]} d5 {[%emt 0:0:4]} 4. g3 {[%emt 0:0:9]} Be7 {[%emt 0:0:6]} 5. Bg2 {[%emt 0:0:4]} 0-0 {[%emt 0:0:1]} 6. 0-0 {[%emt 0:0:0]} dxc4 {[%emt 0:0:3]} 7. Qc2 {[%emt 0:0:1]} a6 {[%emt 0:0:2]} 8. a4 {[%emt 0:0:1]} Bd7 {[%emt 0:0:2]} 9. Qxc4 {[%emt 0:0:2]} Bc6 {[%emt 0:0:0]} 10. Bg5 {[%emt 0:0:3]} Bd5 {[%emt 0:0:3]} 11. Qc2 {[%emt 0:0:23]} Be4 {[%emt 0:0:2]} 12. Qc1 {[%emt 0:0:17]} h6 {[%emt 0:0:2]} 13. Bxf6 {[%emt 0:0:2]
} Bxf6 {[%emt 0:0:0]} 14. Nbd2 {[%emt 0:0:34]} Bxf3 {[%emt 0:0:0]} 15. Nxf3 {[%emt 0:0:4]} a5 {[%emt 0:0:3]} 16. Qc3 {[%emt 0:1:9]} Nc6 {[%emt 0:1:4]} 17. Rad1 {[%emt 0:0:3]} Nb4 {[%emt 0:0:48]} 18. Ne5 {[%emt 0:1:28]
} c6 {[%emt 0:1:55]} 19. e4 {[%emt 0:0:3]} Bxe5 {[%emt 0:0:0]} 20. dxe5 {[%emt 0:0:3]} Qb6 {[%emt 0:0:1]} 21. Rd6 {[%emt 0:0:47]} Na6 {[%emt 0:0:35]} 22. Rfd1 {[%emt 0:1:38]} Qc5 {[%emt 0:0:24]} 23. Qxc5 {[%emt 0:1:23]
} Nxc5 {[%emt 0:0:3]} 24. R1d4 {[%emt 0:0:0]} Rfc8 {[%emt 0:0:0]} 25. Bf1 {[%emt 0:5:56]} b5 {[%emt 0:7:27]} 26. axb5 {[%emt 0:0:3]} cxb5 {[%emt 0:0:0]} 27. Bxb5 {[%emt 0:0:1]} Rab8 {[%emt 0:0:4]} 28. Ba6 {[%emt 0:0:3]
} Nxa6 {[%emt 0:0:30]} 29. Rxa6 {[%emt 0:0:3]} Rxb2 {[%emt 0:0:0]} 30. Ra7 {[%emt 0:2:23]} Rb5 {[%emt 0:0:41]} 31. Rdd7 {[%emt 0:1:19]} Rf8 {[%emt 0:0:2]} 32. Rd4 {[%emt 0:0:52]} Rxe5 {[%emt 0:1:37]} 33. Ra4 {[%emt 0:0:7]
} Rb8 {[%emt 0:0:1]} 34. R7xa5 {[%emt 0:0:7]} Rxa5 {[%emt 0:0:0]} 35. Rxa5 {[%emt 0:0:0]} Rb4 {[%emt 0:0:0]} 36. h4 {[%emt 0:0:28]} Rxe4 {[%emt 0:0:3]} 37. Kg2 {[%emt 0:0:1]} g6 {[%emt 0:0:7]} 38. Rb5 {[%emt 0:0:6]
} Kg7 {[%emt 0:0:2]} 39. Ra5 {[%emt 0:0:1]} Rd4 {[%emt 0:0:0]} 40. Ra7 {[%emt 0:0:2]} Kf6 {[%emt 0:0:8]} 41. Ra8 {[%emt 0:0:3]} Kf5 {[%emt 0:0:16]} 42. Rh8 {[%emt 0:0:10]} h5 {[%emt 0:0:37]} 43. Ra8 {[%emt 0:0:0]} e5 {[%emt 0:0:9]} 44. Ra5 {[%emt 0:0:11]} Rd2 {[%emt 0:0:5]} 45. Rb5 {[%emt 0:0:9]} Ra2 {[%emt 0:0:9]} 46. Rc5 {[%emt 0:0:3]} f6 {[%emt 0:0:0]} 47. Rb5 {[%emt 0:0:6]} Ra4 {[%emt 0:0:9]} 48. Rc5 {[%emt 0:0:15]} g5 {[%emt 0:0:13]} 49. hxg5 {[%emt 0:0:3]} Kxg5 {[%emt 0:0:6]} 50. Rb5 {[%emt 0:0:34]
} Re4 {[%emt 0:0:4]} 51. Rb8 {[%emt 0:0:9]} Rg4 {[%emt 0:0:0]} 52. Kf3 {[%emt 0:0:34]} Ra4 {[%emt 0:0:24]} 53. Rg8+ {[%emt 0:0:58]} Kf5 {[%emt 0:0:2]} 54. Rh8 {[%emt 0:0:17]} Ra3+ {[%emt 0:0:20]} 55. Kg2 {[%emt 0:0:8]
} Kg6 {[%emt 0:0:0]} 56. Rg8+ {[%emt 0:0:3]} Kh7 {[%emt 0:0:0]} 57. Rb8 {[%emt 0:0:3]} Ra2 {[%emt 0:0:6]} 58. Re8 {[%emt 0:0:18]} Kg6 {[%emt 0:0:8]} 59. Rg8+ {[%emt 0:0:5]} Kf5 {[%emt 0:0:6]} 60. Rh8 {[%emt 0:0:4]
} Kg6 {[%emt 0:0:21]} 61. Rg8+ {[%emt 0:0:2]} Kh7 {[%emt 0:0:0]} 62. Re8 {[%emt 0:0:2]} Rb2 {[%emt 0:0:2]} 63. Rf8 {[%emt 0:0:35]} Kg7 {[%emt 0:0:14]} 64. Re8 {[%emt 0:0:2]} Rb4 {[%emt 0:0:19]} 65. Kf3 {[%emt 0:0:29]
} Ra4 {[%emt 0:0:27]} 66. Rb8 {[%emt 0:0:36]} Kg6 {[%emt 0:0:0]} 67. Rg8+ {[%emt 0:0:7]} Kf5 {[%emt 0:0:1]} 68. Rh8 {[%emt 0:0:4]} e4+ {[%emt 0:0:1]} 69. Kg2 {[%emt 0:0:15]} Kg6 {[%emt 0:0:1]} 70. Rg8+ {[%emt 0:0:9]
} Kf7 {[%emt 0:0:2]} 71. Rh8 {[%emt 0:0:48]} Ra5 {[%emt 0:0:0]} 72. Kf1 {[%emt 0:0:27]} Rf5 {[%emt 0:0:6]} 73. Ke2 {[%emt 0:0:21]} Re5 {[%emt 0:1:41]} 74. Ke3 {[%emt 0:0:27]} Kg7 {[%emt 0:0:2]} 75. Ra8 {[%emt 0:0:14]
} Kg6 {[%emt 0:0:1]} 76. Kf4 {[%emt 0:0:14]} Rf5+ {[%emt 0:0:0]} 77. Kxe4 {[%emt 0:0:9]} Rxf2 {[%emt 0:0:2]} 78. Rg8+ {[%emt 0:0:7]} Kh6 {[%emt 0:0:11]} 79. Rh8+ {[%emt 0:0:4]} Kg6 {[%emt 0:0:1]} 80. Rg8+ {[%emt 0:0:1]
} Kh7 {[%emt 0:0:2]} 81. Ra8 {[%emt 0:0:6]} Rf1 {[%emt 0:0:0]} 82. Rb8 {[%emt 0:0:6]} f5+ {[%emt 0:0:13]} 83. Ke3 {[%emt 0:0:2]} Kg6 {[%emt 0:0:3]} 84. Rg8+ {[%emt 0:0:20]} Kh7 {[%emt 0:0:3]} 85. Ra8 {[%emt 0:0:12]
} Kg6 {[%emt 0:0:2]} 86. Rg8+ {[%emt 0:0:3]} Kh7 {[%emt 0:0:0]} 87. Ra8 {[%emt 0:0:1]} Kg6 {[%emt 0:0:0]} 88. Rg8+ {[%emt 0:0:2]} 1/2-1/2

[Event "FIDE Chesscom Online Nations Cup"]
[White "Firouzja, Alireza"]
[Black "Artemiev, Vladislav"]
[Site "Online"]
[Round "4"]
[Annotator "RC"]
[Result "1/2-1/2"]
[Date "2020.05.06"]
[WhiteElo "2703"]
[BlackElo "2769"]
[PlyCount "154"]
[TimeControl "1500+10"]

1. e4 {[%emt 0:0:1]} c5 {[%emt 0:0:4]} 2. Nf3 {[%emt 0:0:2]} e6 {[%emt 0:0:0]} 3. d4 {[%emt 0:0:5]} cxd4 {[%emt 0:0:1]} 4. Nxd4 {[%emt 0:0:0]} Nc6 {[%emt 0:0:1]} 5. Nc3 {[%emt 0:0:2]} a6 {[%emt 0:0:1]} 6. g3 {[%emt 0:0:7]
} Nxd4 {[%emt 0:0:7]} 7. Qxd4 {[%emt 0:0:2]} b5 {[%emt 0:0:0]} 8. Bg2 {[%emt 0:0:48]} Bb7 {[%emt 0:0:7]} 9. 0-0 {[%emt 0:1:7]} Ne7 {[%emt 0:0:2]
} 10. a4 {[%emt 0:1:0]} Nc6 {[%emt 0:0:8]} 11. Qd1 {[%emt 0:0:0]} b4 {[%emt 0:0:9]} 12. Nd5 {[%emt 0:0:1]} Bc5 {[%emt 0:1:11]} 13. Qg4 {[%emt 0:0:38]} 0-0 {[%emt 0:2:2]} 14. Bh6 {[%emt 0:1:9]} Bd4 {[%emt 0:0:4]
} 15. c3 {[%emt 0:2:55]} bxc3 {[%emt 0:2:18]} 16. bxc3 {[%emt 0:0:5]
} Be5 {[%emt 0:2:15]} 17. f4 {[%emt 0:2:37]} Bf6 {[%emt 0:0:0]} 18. e5 {[%emt 0:6:19]} exd5 {[%emt 0:0:4]} 19. exf6 {[%emt 0:0:8]} Qxf6 {[%emt 0:0:2]} 20. Bg5 {[%emt 0:0:2]} Qxc3 {[%emt 0:0:14]} 21. Qxd7 {[%emt 0:2:27]
} Rab8 {[%emt 0:2:59]} 22. Rac1 {[%emt 0:0:20]} Qe3+ {[%emt 0:0:0]} 23. Kh1 {[%emt 0:0:3]} Qe6 {[%emt 0:0:29]} 24. Qxd5 {[%emt 0:2:59]} Qxd5 {[%emt 0:1:5]} 25. Bxd5 {[%emt 0:0:0]} Nd4 {[%emt 0:0:21]} 26. Bxb7 {[%emt 0:0:1]
} Rxb7 {[%emt 0:0:0]} 27. f5 {[%emt 0:0:11]} h6 {[%emt 0:0:0]} 28. Be3 {[%emt 0:0:4]} Rd8 {[%emt 0:0:4]} 29. Rc4 {[%emt 0:1:27]} Rbd7 {[%emt 0:0:5]} 30. f6 {[%emt 0:0:32]} g5 {[%emt 0:0:8]} 31. h4 {[%emt 0:0:11]
} gxh4 {[%emt 0:1:19]} 32. Rf4 {[%emt 0:0:4]} Ne6 {[%emt 0:0:0]} 33. Rxh4 {[%emt 0:0:18]} Nf8 {[%emt 0:0:33]} 34. Bxh6 {[%emt 0:1:5]} Ng6 {[%emt 0:0:1]} 35. Rhe4 {[%emt 0:0:11]} Rd6 {[%emt 0:0:14]} 36. Kg2 {[%emt 0:0:4]
} Rb8 {[%emt 0:0:15]} 37. Bg5 {[%emt 0:0:48]} Rd5 {[%emt 0:0:0]} 38. Be3 {[%emt 0:0:5]} Rb2+ {[%emt 0:0:3]} 39. Kh3 {[%emt 0:0:11]} Rh5+ {[%emt 0:0:28]} 40. Kg4 {[%emt 0:0:2]} Rd5 {[%emt 0:0:7]} 41. Bd4 {[%emt 0:0:44]
} Rd2 {[%emt 0:0:5]} 42. Bc3 {[%emt 0:0:9]} R2d3 {[%emt 0:0:0]} 43. Rc8+ {[%emt 0:0:5]} Kh7 {[%emt 0:0:8]} 44. Rc7 {[%emt 0:0:19]} Kh6 {[%emt 0:0:1]} 45. Kh3 {[%emt 0:0:9]} Rf3 {[%emt 0:0:27]} 46. Kg2 {[%emt 0:0:2]
} Rfd3 {[%emt 0:0:24]} 47. Be1 {[%emt 0:0:11]} Rd7 {[%emt 0:0:0]} 48. Rxd7 {[%emt 0:0:15]} Rxd7 {[%emt 0:0:1]} 49. Rc4 {[%emt 0:0:8]} Rd6 {[%emt 0:0:6]} 50. Bc3 {[%emt 0:0:4]} Kg5 {[%emt 0:0:15]} 51. Rc7 {[%emt 0:0:3]
} Rd3 {[%emt 0:0:1]} 52. Kf2 {[%emt 0:0:14]} Kf5 {[%emt 0:0:0]} 53. Rc5+ {[%emt 0:0:20]} Ke4 {[%emt 0:0:26]} 54. Rc4+ {[%emt 0:0:20]} Kd5 {[%emt 0:0:1]} 55. Rc7 {[%emt 0:0:4]} Ke4 {[%emt 0:0:8]} 56. Ba1 {[%emt 0:0:17]
} Rd1 {[%emt 0:0:18]} 57. Bc3 {[%emt 0:0:9]} Rd3 {[%emt 0:0:0]} 58. Rc6 {[%emt 0:0:7]} Kd5 {[%emt 0:0:5]} 59. Rc8 {[%emt 0:0:3]} Ke4 {[%emt 0:0:4]} 60. Re8+ {[%emt 0:0:3]} Kf5 {[%emt 0:0:10]} 61. Re3 {[%emt 0:0:3]
} Rd1 {[%emt 0:0:35]} 62. Ke2 {[%emt 0:0:6]} Rb1 {[%emt 0:0:0]} 63. Kd3 {[%emt 0:0:13]} Rb8 {[%emt 0:0:15]} 64. Kc4 {[%emt 0:0:25]} Rc8+ {[%emt 0:0:1]} 65. Kd5 {[%emt 0:0:10]} Nf8 {[%emt 0:0:4]} 66. Re5+ {[%emt 0:0:20]
} Kg6 {[%emt 0:0:2]} 67. Re3 {[%emt 0:0:10]} Nd7 {[%emt 0:0:0]} 68. Rf3 {[%emt 0:0:11]} Nb6+ {[%emt 0:0:1]} 69. Kd6 {[%emt 0:0:4]} Nxa4 {[%emt 0:0:8]} 70. Bd4 {[%emt 0:0:1]} Rd8+ {[%emt 0:0:17]} 71. Ke5 {[%emt 0:0:2]
} Rb8 {[%emt 0:0:18]} 72. Rf4 {[%emt 0:0:14]} Rb5+ {[%emt 0:0:0]} 73. Kd6 {[%emt 0:0:1]} Nb6 {[%emt 0:0:22]} 74. Rg4+ {[%emt 0:0:12]} Kf5 {[%emt 0:0:4]} 75. Rf4+ {[%emt 0:0:3]} Kg6 {[%emt 0:0:3]} 76. Rg4+ {[%emt 0:0:0]
} Kf5 {[%emt 0:0:1]} 77. Rf4+ {[%emt 0:0:1]} Kg6 {[%emt 0:0:0]} 1/2-1/2

[Event "FIDE Chesscom Online Nations Cup"]
[White "Muzychuk, Mariya"]
[Black "Girya, Olga"]
[Site "Online"]
[Round "4"]
[Annotator "ChessBase"]
[Result "1/2-1/2"]
[Date "2020.05.06"]
[WhiteElo "2506"]
[BlackElo "2471"]
[PlyCount "167"]
[TimeControl "1500+10"]

1. e4 {[%emt 0:0:4]} c6 {[%emt 0:0:2]} 2. d4 {[%emt 0:0:2]} d5 {[%emt 0:0:0]} 3. Nc3 {[%emt 0:0:2]} dxe4 {[%emt 0:0:2]} 4. Nxe4 {[%emt 0:0:1]} Nf6 {[%emt 0:0:2]} 5. Nxf6+ {[%emt 0:0:4]} exf6 {[%emt 0:0:1]} 6. c3 {[%emt 0:0:2]
} Bd6 {[%emt 0:0:2]} 7. Bd3 {[%emt 0:0:6]} 0-0 {[%emt 0:0:0]} 8. Qc2 {[%emt 0:1:1]} Re8+ {[%emt 0:0:5]} 9. Ne2 {[%emt 0:0:2]} h5 {[%emt 0:0:6]
} 10. Be3 {[%emt 0:2:10]} Nd7 {[%emt 0:0:10]} 11. 0-0-0 {[%emt 0:1:18]
} Nf8 {[%emt 0:0:13]} 12. Ng3 {[%emt 0:2:32]} g6 {[%emt 0:0:0]} 13. Ne4 {[%emt 0:0:23]} Be7 {[%emt 0:0:3]} 14. h3 {[%emt 0:0:52]} f5 {[%emt 0:5:5]
} 15. Nd2 {[%emt 0:0:16]} Be6 {[%emt 0:1:29]} 16. Kb1 {[%emt 0:0:0]} b5 {[%emt 0:0:34]} 17. Be2 {[%emt 0:2:38]} Qc7 {[%emt 0:5:4]} 18. Nb3 {[%emt 0:1:27]} Bd5 {[%emt 0:1:21]} 19. Rhg1 {[%emt 0:1:5]} Bd6 {[%emt 0:0:19]
} 20. g3 {[%emt 0:1:14]} Be4 {[%emt 0:5:56]} 21. Bd3 {[%emt 0:0:0]} Rad8 {[%emt 0:0:44]} 22. Bg5 {[%emt 0:2:29]} Be7 {[%emt 0:2:57]} 23. Bf4 {[%emt 0:1:45]} Bd6 {[%emt 0:0:16]} 24. Bxd6 {[%emt 0:0:18]} Qxd6 {[%emt 0:0:14]
} 25. Bxe4 {[%emt 0:1:54]} Rxe4 {[%emt 0:0:30]} 26. Nc5 {[%emt 0:0:4]
} Re7 {[%emt 0:0:1]} 27. g4 {[%emt 0:0:45]} fxg4 {[%emt 0:0:0]} 28. hxg4 {[%emt 0:0:4]} h4 {[%emt 0:1:1]} 29. g5 {[%emt 0:0:44]} Qf4 {[%emt 0:0:9]} 30. Nd3 {[%emt 0:0:8]} Qf5 {[%emt 0:0:24]} 31. Ne5 {[%emt 0:0:15]
} Qxc2+ {[%emt 0:0:25]} 32. Kxc2 {[%emt 0:0:3]} Rd6 {[%emt 0:0:0]} 33. Rg4 {[%emt 0:0:49]} c5 {[%emt 0:0:22]} 34. Rxh4 {[%emt 0:0:24]} cxd4 {[%emt 0:0:1]} 35. cxd4 {[%emt 0:0:1]} Rc7+ {[%emt 0:0:3]} 36. Kb1 {[%emt 0:0:21]
} Ne6 {[%emt 0:0:2]} 37. Rdh1 {[%emt 0:2:54]} Nxg5 {[%emt 0:0:0]} 38. Rh8+ {[%emt 0:0:20]} Kg7 {[%emt 0:0:2]} 39. f4 {[%emt 0:0:2]} Ne4 {[%emt 0:0:7]} 40. Ng4 {[%emt 0:0:54]} Nd2+ {[%emt 0:0:6]} 41. Ka1 {[%emt 0:0:1]
} Rc1+ {[%emt 0:0:8]} 42. Rxc1 {[%emt 0:0:2]} Kxh8 {[%emt 0:0:0]} 43. Rc7 {[%emt 0:0:31]} Kg7 {[%emt 0:0:37]} 44. Ne5 {[%emt 0:0:33]} Rxd4 {[%emt 0:0:12]} 45. Rxf7+ {[%emt 0:0:5]} Kg8 {[%emt 0:0:21]} 46. b3 {[%emt 0:0:18]
} a5 {[%emt 0:0:16]} 47. Rf6 {[%emt 0:0:10]} Ne4 {[%emt 0:0:0]} 48. Rxg6+ {[%emt 0:0:2]} Kf8 {[%emt 0:0:1]} 49. Rg2 {[%emt 0:0:32]} Nc3 {[%emt 0:0:17]} 50. Kb2 {[%emt 0:0:7]} b4 {[%emt 0:0:3]} 51. Nc6 {[%emt 0:0:16]
} Rxf4 {[%emt 0:0:13]} 52. Nxa5 {[%emt 0:0:6]} Nd1+ {[%emt 0:0:0]} 53. Kc1 {[%emt 0:0:5]} Nc3 {[%emt 0:0:2]} 54. Nc6 {[%emt 0:0:10]} Rf1+ {[%emt 0:0:10]} 55. Kc2 {[%emt 0:0:16]} Nxa2 {[%emt 0:0:5]} 56. Kb2 {[%emt 0:0:4]
} Nc3 {[%emt 0:0:6]} 57. Nxb4 {[%emt 0:0:18]} Nb5 {[%emt 0:0:0]} 58. Re2 {[%emt 0:0:7]} Rf3 {[%emt 0:0:6]} 59. Rd2 {[%emt 0:0:14]} Ke8 {[%emt 0:0:26]} 60. Nc6 {[%emt 0:0:3]} Rf6 {[%emt 0:0:16]} 61. Nd4 {[%emt 0:0:8]
} Nc7 {[%emt 0:0:14]} 62. Kc3 {[%emt 0:0:9]} Rd6 {[%emt 0:0:0]} 63. b4 {[%emt 0:0:17]} Kd7 {[%emt 0:0:4]} 64. Kc4 {[%emt 0:0:12]} Nd5 {[%emt 0:0:6]} 65. b5 {[%emt 0:0:7]} Ne3+ {[%emt 0:0:8]} 66. Kc3 {[%emt 0:0:9]
} Nd5+ {[%emt 0:0:4]} 67. Kb3 {[%emt 0:0:3]} Nb6 {[%emt 0:0:0]} 68. Rd3 {[%emt 0:0:4]} Kc7 {[%emt 0:0:7]} 69. Kc3 {[%emt 0:0:7]} Nd5+ {[%emt 0:0:5]} 70. Kc4 {[%emt 0:0:2]} Nb6+ {[%emt 0:0:7]} 71. Kb4 {[%emt 0:0:4]
} Kb7 {[%emt 0:0:2]} 72. Kc3 {[%emt 0:0:11]} Nd5+ {[%emt 0:0:0]} 73. Kd2 {[%emt 0:0:5]} Nb4 {[%emt 0:0:5]} 74. Rb3 {[%emt 0:0:26]} Rxd4+ {[%emt 0:0:3]} 75. Kc3 {[%emt 0:0:1]} Rd3+ {[%emt 0:0:28]} 76. Kxb4 {[%emt 0:0:3]} Rxb3+ {[%emt 0:0:4]} 77. Kxb3 {[%emt 0:0:1]} Kb6 {[%emt 0:0:0]} 78. Kb4 {[%emt 0:0:1]} Kb7 {[%emt 0:0:1]} 79. Kc5 {[%emt 0:0:1]} Kc7 {[%emt 0:0:1]} 80. b6+ {[%emt 0:0:1]} Kb7 {[%emt 0:0:2]} 81. Kb5 {[%emt 0:0:0]
} Kb8 {[%emt 0:0:1]} 82. Kc6 {[%emt 0:0:2]} Kc8 {[%emt 0:0:0]} 83. b7+ {[%emt 0:0:1]} Kb8 {[%emt 0:0:1]} 84. Kb6 {[%emt 0:0:1]} 1/2-1/2

[Event "FIDE Chesscom Online Nations Cup"]
[White "Zatonskih, Anna"]
[Black "Dzagnidze, Nana"]
[Site "Online"]
[Round "4"]
[Annotator "RC"]
[Result "0-1"]
[Date "2020.05.06"]
[WhiteElo "2327"]
[BlackElo "2447"]
[PlyCount "94"]
[TimeControl "1500+10"]

1. e4 {[%emt 0:0:1]} c5 {[%emt 0:0:3]} 2. c3 {[%emt 0:0:1]} Nf6 {[%emt 0:0:0]} 3. e5 {[%emt 0:0:7]} Nd5 {[%emt 0:0:7]} 4. Nf3 {[%emt 0:0:25]} Nc6 {[%emt 0:0:41]} 5. Bc4 {[%emt 0:0:7]} Nb6 {[%emt 0:0:14]} 6. Bb3 {[%emt 0:0:0]} d5 {[%emt 0:0:30]} 7. exd6 {[%emt 0:1:16]} Qxd6 {[%emt 0:0:8]} 8. 0-0 {[%emt 0:0:33]} Be6 {[%emt 0:2:40]} 9. Na3 {[%emt 0:1:56]} Bxb3 {[%emt 0:2:26]
} 10. axb3 {[%emt 0:0:5]} Qd3 {[%emt 0:0:53]} 11. Qc2 {[%emt 0:5:12]
} Rd8 {[%emt 0:2:50]} 12. Qxd3 {[%emt 0:1:6]} Rxd3 {[%emt 0:0:0]} 13. Nc4 {[%emt 0:2:0]} Nxc4 {[%emt 0:0:19]} 14. bxc4 {[%emt 0:0:0]
} e6 {[%emt 0:2:14]} 15. Rd1 {[%emt 0:8:56]} Be7 {[%emt 0:0:13]} 16. Ne1 {[%emt 0:0:54]
} Rd7 {[%emt 0:0:10]} 17. Nf3 {[%emt 0:0:35]} e5 {[%emt 0:0:0]} 18. d4 {[%emt 0:2:53]} exd4 {[%emt 0:2:23]} 19. cxd4 {[%emt 0:0:2]} cxd4 {[%emt 0:0:5]} 20. Bd2 {[%emt 0:0:2]} 0-0 {[%emt 0:1:4]} 21. b4 {[%emt 0:0:4]
} Bxb4 {[%emt 0:0:25]} 22. Bxb4 {[%emt 0:0:4]} Nxb4 {[%emt 0:0:0]} 23. Rxa7 {[%emt 0:0:4]} Nc6 {[%emt 0:1:24]} 24. Ra3 {[%emt 0:0:5]} f6 {[%emt 0:0:21]} 25. Kf1 {[%emt 0:0:24]} Rfd8 {[%emt 0:0:45]} 26. Ke2 {[%emt 0:0:31]
} g5 {[%emt 0:0:22]} 27. h3 {[%emt 0:0:41]} Kf7 {[%emt 0:0:16]
} 28. g4 {[%emt 0:0:37]} Kg6 {[%emt 0:0:19]} 29. h4 {[%emt 0:0:32]} gxh4 {[%emt 0:0:46]
} 30. Rh1 {[%emt 0:0:3]} Re7+ {[%emt 0:0:39]} 31. Kd2 {[%emt 0:0:20]
} Ne5 {[%emt 0:0:56]} 32. Nxe5+ {[%emt 0:0:5]} fxe5 {[%emt 0:0:0]} 33. Rxh4 {[%emt 0:0:4]} Rf8 {[%emt 0:1:10]} 34. Ke2 {[%emt 0:0:23]} e4 {[%emt 0:0:25]} 35. Rah3 {[%emt 0:0:5]} Ref7 {[%emt 0:0:11]} 36. Rh6+ {[%emt 0:0:8]
} Kg5 {[%emt 0:0:2]} 37. R6h5+ {[%emt 0:0:15]} Kf4 {[%emt 0:0:0]} 38. g5 {[%emt 0:0:11]} d3+ {[%emt 0:0:7]} 39. Ke1 {[%emt 0:0:6]} Ra8 {[%emt 0:0:12]} 40. R3h4+ {[%emt 0:0:10]} Kf5 {[%emt 0:0:24]} 41. g6+ {[%emt 0:0:3]
} Kxg6 {[%emt 0:0:2]} 42. Rh6+ {[%emt 0:0:1]} Kf5 {[%emt 0:0:0]} 43. R6h5+ {[%emt 0:0:2]} Kf6 {[%emt 0:0:11]} 44. Rh6+ {[%emt 0:0:0]} Ke5 {[%emt 0:0:6]} 45. R4h5+ {[%emt 0:0:49]} Kd4 {[%emt 0:0:5]} 46. Rd6+ {[%emt 0:0:7]} Kc3 {[%emt 0:0:1]} 47. Kf1 {[%emt 0:0:15]} Rg7 {[%emt 0:0:10]
} 0-1